bitfinex-derivatives/quotes_SOLF0:USTF0_20230404
["timestamp","ask_amount","ask_price","bid_price","bid_amount"]
[1680614252002,0.06346773,21.019,21.007,23.62]
[1680614252003,23.4,21.018,21.007,23.62]
[1680614259100,0.06346773,21.019,21.011,23.62]
[1680614260100,0.06346773,21.019,21.015,23.62]
[1680614260300,0.06590611,21.024,21.015,23.62]
[1680614270011,23.62,21.023,21.012,0.06264069]
[1680614270217,23.4,21.02,21.012,0.06264069]
[1680614278617,23.68590611,21.024,21.013,23.6]
[1680614289721,0.06590611,21.024,21.015,23.62]
[1680614291927,0.06590611,21.024,21.018,23.62]
[1680614292125,23.54,21.036,21.023,23.6]
[1680614292325,23.54,21.036,21.025,23.6]
[1680614292626,43.6429,21.038,21.028,23.6]
[1680614297629,23.4,21.031,21.026,0.06618564]
[1680614297931,23.4,21.031,21.019,43.9946]
[1680614297932,23.54,21.028,21.021,0.06581916]
[1680614302239,68.9375,21.03,21.021,0.06581916]
[1680614303637,23.4,21.03,21.021,0.06581916]
[1680614308243,0.06169809,21.032,21.023,23.62]
[1680614316349,0.06169809,21.032,21.027,23.6]
[1680614316643,46.63738891,21.037,21.028,10.0]
[1680614316844,70.25738891,21.037,21.028,10.0]
[1680614317044,70.25738891,21.037,21.027,23.6]
[1680614322063,23.62,21.036,21.025,23.62]
[1680614322261,23.62,21.036,21.026,10.0]
[1680614322956,23.62,21.036,21.025,23.62]
[1680614340068,23.62,21.032,21.022,23.6]
[1680614345671,23.54,21.03,21.021,0.06581916]
[1680614357480,23.4,21.028,21.021,0.06581916]
[1680614359983,47.9676,21.029,21.021,0.06581916]
[1680614362387,0.06994412,21.032,21.021,0.06581916]
[1680614362388,0.06994412,21.032,21.023,23.62]
[1680614370187,0.06994412,21.032,21.025,23.62]
[1680614370391,0.06994412,21.032,21.026,10.0]
[1680614370691,23.68141723,21.036,21.025,23.62]
[1680614377694,0.06141723,21.036,21.029,23.62]
[1680614382098,0.06141723,21.036,21.032,23.62]
[1680614382296,23.47224771,21.039,21.032,23.62]
[1680614384800,23.54046201,21.041,21.032,23.62]
[1680614389493,0.0682143,21.041,21.032,23.62]
[1680614390298,23.5613437,21.041,21.032,23.62]
[1680614391604,0.0682143,21.041,21.032,23.62]
[1680614397508,0.0682143,21.041,21.03,23.62]
[1680614405511,23.62,21.039,21.028,23.62]
[1680614406114,23.68,21.039,21.028,23.5]
[1680614415616,0.0682143,21.041,21.027,14.2500288]
[1680614415617,23.57,21.036,21.027,14.2500288]
[1680614420019,23.57,21.039,21.029,23.5]
[1680614420519,23.57,21.039,21.03,10.0]
[1680614421917,23.57,21.039,21.029,23.5]
[1680614425423,23.57,21.039,21.03,10.0]
[1680614425723,23.57,21.039,21.029,23.5]
[1680614430021,0.0682143,21.041,21.036,23.68]
[1680614430222,0.06917431,21.046,21.036,23.68]
[1680614430525,0.06917431,21.046,21.039,23.68]
[1680614433428,23.74917431,21.046,21.035,23.68]
[1680614433829,23.74917431,21.046,21.036,10.0]
[1680614435127,23.74917431,21.046,21.035,23.68]
[1680614435829,23.74917431,21.046,21.036,10.0]
[1680614438132,0.06917431,21.046,21.039,23.6]
[1680614447733,23.74917431,21.046,21.035,23.68]
[1680614448738,23.68,21.043,21.034,0.06657011]
[1680614450237,23.49,21.04,21.034,0.06657011]
[1680614450534,23.49,21.04,21.03,0.06438342]
[1680614452542,44.9163,21.039,21.03,0.06438342]
[1680614453944,23.68,21.036,21.03,0.06438342]
[1680614454144,23.68,21.036,21.026,0.07056941]
[1680614462951,44.9163,21.039,21.029,23.68]
[1680614463251,44.9163,21.039,21.032,23.68]
[1680614470053,68.5963,21.039,21.029,23.68]
[1680614471648,44.9163,21.039,21.033,23.68]
[1680614471854,44.9163,21.039,21.034,10.0]
[1680614472757,44.9163,21.039,21.033,23.68]
[1680614475856,44.9163,21.039,21.031,23.5]
[1680614477759,44.9163,21.039,21.026,0.07056941]
[1680614477760,23.68,21.038,21.027,23.68]
[1680614480561,44.9163,21.039,21.031,23.68]
[1680614480759,44.9163,21.039,21.032,10.0]
[1680614481358,44.9163,21.039,21.031,23.68]
[1680614483062,0.06037559,21.04,21.031,23.68]
[1680614483261,0.06037559,21.04,21.034,23.68]
[1680614483564,0.06209624,21.044,21.034,23.68]
[1680614493971,0.06209624,21.044,21.038,23.68]
[1680614494178,69.18496109,21.048,21.039,10.0]
[1680614494470,69.18496109,21.048,21.038,23.68]
[1680614494675,23.68,21.045,21.033,46.0976]
[1680614494876,23.68,21.045,21.032,0.07025816]
[1680614495176,23.68,21.045,21.034,23.5]
[1680614497078,23.68,21.041,21.032,0.07025816]
[1680614499684,23.49,21.038,21.032,0.07025816]
[1680614499982,23.49,21.038,21.028,0.06420001]
[1680614500186,10.0,21.037,21.027,23.68]
[1680614500784,23.49,21.038,21.027,23.68]
[1680614505188,23.68,21.035,21.026,0.06835143]
[1680614505488,10.0,21.034,21.026,0.06835143]
[1680614506088,55.523,21.034,21.026,0.06835143]
[1680614506387,23.57,21.031,21.026,0.06835143]
[1680614506585,23.57,21.031,21.021,0.06374331]
[1680614512081,69.28624947,21.034,21.021,0.06374331]
[1680614512288,45.523,21.034,21.024,23.68]
[1680614512685,69.093,21.034,21.024,23.68]
[1680614513794,23.49,21.031,21.021,0.06374331]
[1680614517195,47.52058435,21.031,21.021,0.06374331]
[1680614517494,23.49,21.031,21.021,0.06374331]
[1680614520194,69.013,21.034,21.023,23.6]
[1680614522394,69.013,21.034,21.021,0.06374331]
[1680614522395,23.49,21.03,21.021,0.06374331]
[1680614524197,10.0,21.033,21.021,0.06374331]
[1680614524198,23.57,21.027,21.021,0.06374331]
[1680614524398,23.57,21.027,21.017,48.09652215]
[1680614531101,23.57,21.027,21.017,0.06512215]
[1680614532505,45.4437,21.026,21.017,0.06512215]
[1680614534712,45.4437,21.026,21.018,23.68]
[1680614544713,45.4437,21.026,21.017,0.06512215]
[1680614549011,23.57,21.024,21.017,0.06512215]
[1680614549315,10.0,21.023,21.017,0.06512215]
[1680614549514,23.57,21.024,21.013,38.11056568]
[1680614550617,23.49,21.021,21.013,0.06301044]
[1680614586638,23.57,21.016,21.013,0.06301044]
[1680614586839,0.1235716,21.013,21.004,23.68]
[1680614589946,23.57,21.012,21.001,0.06906803]
[1680614590246,23.57,21.012,21.001,23.56906803]
[1680614599549,10.0,21.011,21.001,23.56906803]
[1680614600350,10.0,21.008,21.001,0.06906803]
[1680614604050,23.57,21.005,21.001,0.06906803]
[1680614604351,10.0,21.004,20.996,0.06731513]
[1680614604849,57.013,21.004,20.996,0.06731513]
[1680614605050,47.013,21.004,20.996,0.06731513]
[1680614605444,10.0,21.003,20.996,0.00731513]
[1680614606045,23.68,21.001,20.996,0.00731513]
[1680614606348,23.68,21.001,20.99,23.68]
[1680614606349,10.0,21.0,20.991,0.0630985]
[1680614606542,23.68,21.001,20.991,0.0630985]
[1680614606950,0.07098749,21.003,20.991,0.0630985]
[1680614606951,0.07098749,21.003,20.993,23.6]
[1680614608851,0.07098749,21.003,20.997,23.6]
[1680614609050,10.06290891,21.007,20.997,23.6]
[1680614609350,23.68,21.004,20.993,23.5]
[1680614609850,23.68,21.004,20.994,10.0]
[1680614610348,0.06290891,21.007,20.997,23.68]
[1680614610648,0.06290891,21.007,20.994,10.0]
[1680614610853,0.1235716,21.013,21.004,23.6]
[1680614611043,0.1235716,21.013,21.005,44.2411]
[1680614611243,0.1235716,21.013,21.007,23.68]
[1680614613553,0.1235716,21.013,21.008,10.0]
[1680614614151,0.1235716,21.013,21.007,23.68]
[1680614615349,0.1235716,21.013,21.01,23.68]
[1680614615545,142.0,21.03,21.012,23.5]
[1680614615759,44.3171,21.028,21.005,23.68]
[1680614616052,44.3171,21.028,21.006,45.7863]
[1680614616254,23.57,21.03,21.008,100.0]
[1680614616754,0.06043104,21.026,21.021,23.68]
[1680614616954,0.0617373,21.031,21.021,23.68]
[1680614620653,0.0617373,21.031,21.016,0.06501386]
[1680614620859,23.68,21.024,21.016,0.06501386]
[1680614625858,23.68,21.019,21.006,46.6259]
[1680614626356,23.68,21.019,21.008,23.68]
[1680614636465,10.0,21.018,21.008,23.68]
[1680614637666,23.68,21.015,21.006,46.68960373]
[1680614637968,23.68,21.018,21.007,23.6]
[1680614638459,152.0,21.02,21.006,46.68960373]
[1680614638666,23.49,21.014,21.006,0.06370373]
[1680614638863,23.57,21.011,21.006,0.06370373]
[1680614639166,23.57,21.011,21.001,0.06371807]
[1680614639668,23.68,21.008,21.001,0.06371807]
[1680614639857,10.0,21.007,21.001,0.06371807]
[1680614640062,10.0,21.007,20.997,71.1628171]
[1680614640263,23.68,21.008,20.997,71.1628171]
[1680614640667,23.63784044,21.011,21.0,23.68]
[1680614640964,23.63784044,21.011,21.001,10.0]
[1680614641168,0.06784044,21.011,21.003,23.68]
[1680614642571,0.06784044,21.011,21.0,23.68]
[1680614644264,0.06784044,21.011,20.997,47.4828171]
[1680614644467,23.57,21.009,20.997,71.1628171]
[1680614647373,23.57,21.009,20.997,0.0622171]
[1680614647574,23.68,21.006,20.997,0.0622171]
[1680614648075,23.49,21.003,20.997,0.0622171]
[1680614648272,23.49,21.003,20.993,0.07125521]
[1680614648769,23.49,21.003,20.993,10.07125521]
[1680614649074,0.06903571,21.005,20.994,23.68]
[1680614649470,0.06903571,21.005,20.997,23.5]
[1680614651075,23.74903571,21.005,20.993,23.57125521]
[1680614652077,0.06903571,21.005,20.993,0.07125521]
[1680614652877,0.06903571,21.005,20.995,35.63]
[1680614670179,0.06903571,21.005,20.999,35.63]
[1680614670375,0.06827917,21.009,20.999,35.63]
[1680614670682,0.07115787,21.011,20.999,35.63]
[1680614670877,0.07115787,21.011,21.0,43.9154]
[1680614671478,0.07115787,21.011,20.999,35.63]
[1680614672079,0.07115787,21.011,21.0,43.9154]
[1680614672483,0.07115787,21.011,21.001,10.0]
[1680614673288,0.07115787,21.011,21.002,46.2727]
[1680614673690,0.07115787,21.011,21.003,10.0]
[1680614674889,0.07115787,21.011,21.002,46.2727]
[1680614675587,0.07115787,21.011,21.004,35.63]
[1680614676089,100.0,21.028,21.007,10.0]
[1680614676090,35.63,21.021,21.007,10.0]
[1680614676688,35.63,21.024,21.01,35.57]
[1680614676890,45.3173,21.027,21.013,35.63]
[1680614677088,45.38181877,21.027,21.016,35.57]
[1680614677693,0.06451877,21.027,21.016,35.57]
[1680614677991,0.06451877,21.027,21.02,35.57]
[1680614680692,0.06451877,21.027,21.021,10.0]
[1680614680888,0.0645338,21.031,21.021,10.0]
[1680614681998,0.0645338,21.031,21.02,35.57]
[1680614683198,0.0645338,21.031,21.021,10.0]
[1680614683599,0.0645338,21.031,21.02,35.57]
[1680614692003,0.0645338,21.031,21.019,0.06355047]
[1680614698405,35.5145338,21.031,21.019,0.06355047]
[1680614699308,35.63,21.027,21.019,0.06355047]
[1680614701210,35.5145338,21.031,21.019,0.06355047]
[1680614701508,35.63,21.028,21.019,0.06355047]
[1680614711413,45.9731,21.027,21.019,0.06355047]
[1680614711713,10.0,21.026,21.019,0.06355047]
[1680614712209,45.9731,21.027,21.019,0.06355047]
[1680614717119,23.47,21.026,21.019,0.06355047]
[1680614717621,10.0,21.025,21.019,0.06355047]
[1680614717815,10.0,21.025,21.015,0.07072673]
[1680614718119,23.47,21.026,21.015,0.07072673]
[1680614723426,187.9731,21.027,21.015,0.07072673]
[1680614723427,23.47,21.022,21.015,0.07072673]
[1680614729431,23.47,21.019,21.015,0.07072673]
[1680614729729,23.47,21.019,21.01,0.06510452]
[1680614730931,45.084,21.018,21.01,0.06510452]
[1680614734133,142.0,21.017,21.01,0.06510452]
[1680614734432,165.71,21.014,21.01,0.06510452]
[1680614734635,23.71,21.011,20.999,23.71]
[1680614734831,23.71,21.008,20.996,23.62]
[1680614735031,23.71,21.005,20.993,23.71]
[1680614735633,0.06112189,21.006,20.996,23.71]
[1680614735933,23.77030873,21.008,20.996,23.71]
[1680614738434,0.06030873,21.008,20.998,23.71]
[1680614745634,0.06030873,21.008,21.001,23.71]
[1680614758443,0.06030873,21.008,20.999,23.61]
[1680614758647,0.06030873,21.008,21.0,10.0]
[1680614759046,0.06030873,21.008,20.999,23.61]
[1680614760546,0.06030873,21.008,21.0,43.986]
[1680614761245,0.06030873,21.008,20.999,23.61]
[1680614761747,0.06030873,21.008,21.0,47.1533]
[1680614761946,0.06030873,21.008,20.999,23.61]
[1680614762343,0.06030873,21.008,21.0,47.1533]
[1680614762547,0.06030873,21.008,20.999,23.61]
[1680614762945,0.06030873,21.008,21.0,47.1533]
[1680614763143,0.06030873,21.008,20.999,23.61]
[1680614763445,0.06030873,21.008,20.997,23.62]
[1680614764351,0.06030873,21.008,20.998,47.1533]
[1680614767558,0.06030873,21.008,21.001,23.71]
[1680614771461,23.77030873,21.008,20.998,47.1533]
[1680614792069,23.71,21.006,20.998,47.1533]
[1680614800883,0.06030873,21.008,20.998,70.8633]
[1680614801979,23.71,21.007,20.998,47.1533]
[1680614807882,23.71,21.004,20.998,47.1533]
[1680614808087,10.0,21.003,20.998,47.1533]
[1680614808487,23.71,21.004,20.994,0.06437073]
[1680614828197,23.47,20.998,20.994,0.06437073]
[1680614828397,23.47,20.998,20.989,0.06648589]
[1680614828705,23.47,20.998,20.987,10.0]
[1680614828906,23.47,20.998,20.986,23.67463391]
[1680614830305,10.0,20.997,20.986,23.67463391]
[1680614831205,23.47,20.998,20.986,23.67463391]
[1680614842906,37.46912895,20.998,20.986,23.67463391]
[1680614843307,23.71,20.994,20.986,0.06463391]
[1680614844502,10.0,20.993,20.986,0.06463391]
[1680614844708,0.04095798,20.986,20.977,23.62]
[1680614848414,23.49,20.988,20.987,0.03077427]
[1680614852016,23.47,20.991,20.987,0.03077427]
[1680614853024,10.0,20.99,20.987,0.03077427]
[1680614853418,23.47,20.991,20.987,0.03077427]
[1680614854823,23.47,20.988,20.987,0.03077427]
[1680614858421,176.27,20.988,20.987,0.03077427]
[1680614861420,176.27,20.988,20.98,0.06683308]
[1680614861624,23.49,20.985,20.98,0.06683308]
[1680614861824,23.49,20.985,20.975,0.06016277]
[1680614862024,23.49,20.983,20.975,0.06016277]
[1680614862524,23.49,20.98,20.975,0.06016277]
[1680614862717,23.49,20.98,20.97,0.06414926]
[1680614865326,10.0,20.979,20.97,0.06414926]
[1680614866425,23.49,20.98,20.97,0.06414926]
[1680614867230,48.4436,20.979,20.97,0.06414926]
[1680614877733,48.35427493,20.979,20.97,0.06414926]
[1680614879131,23.47,20.976,20.97,0.06414926]
[1680614879435,10.0,20.975,20.966,0.06789589]
[1680614880737,23.47,20.976,20.966,0.06789589]
[1680614881236,48.35427493,20.979,20.969,23.61]
[1680614883343,23.53308453,20.98,20.969,23.61]
[1680614884237,0.06308453,20.98,20.972,23.71]
[1680614892044,0.06308453,20.98,20.971,23.62]
[1680614902050,23.55308453,20.98,20.969,23.61]
[1680614905659,10.0,20.979,20.969,23.61]
[1680614905852,23.49,20.977,20.967,48.5011]
[1680614906250,10.0,20.976,20.967,48.5011]
[1680614906861,23.49,20.977,20.967,48.5011]
[1680614907161,10.0,20.975,20.967,48.5011]
[1680614907658,10.0,20.976,20.967,48.5011]
[1680614908561,23.49,20.977,20.967,48.5011]
[1680614908860,10.0,20.976,20.967,48.5011]
[1680614909261,10.0,20.976,20.966,23.67789589]
[1680614912061,23.47,20.975,20.966,0.06789589]
[1680614912459,10.0,20.974,20.966,0.06789589]
[1680614912861,23.47,20.975,20.966,0.06789589]
[1680614913058,45.8316,20.978,20.968,23.61]
[1680614920466,69.3016,20.978,20.968,23.61]
[1680614921956,69.3016,20.978,20.966,0.06789589]
[1680614922165,23.71,20.976,20.966,23.68789589]
[1680614932068,23.47,20.974,20.966,0.06789589]
[1680614939683,23.71,20.976,20.966,23.67789589]
[1680614941989,69.5416,20.978,20.967,23.61]
[1680614942584,23.71,20.978,20.967,23.61]
[1680614943889,0.06308453,20.98,20.97,23.61]
[1680614944084,0.06308453,20.98,20.971,47.9033]
[1680614946690,0.06308453,20.98,20.973,23.62]
[1680614948691,23.47,20.989,20.978,23.61]
[1680614949089,23.47,20.989,20.979,10.0]
[1680614949791,23.47,20.989,20.978,23.61]
[1680614952094,23.49,20.987,20.977,0.06974751]
[1680614957393,10.0,20.986,20.977,0.06974751]
[1680614958496,23.49,20.983,20.977,0.06974751]
[1680614958692,23.71,20.98,20.973,0.06406729]
[1680614958994,10.0,20.979,20.973,0.06406729]
[1680614959295,10.0,20.979,20.969,23.67861401]
[1680614959993,23.71,20.98,20.969,23.67861401]
[1680614963100,10.0,20.979,20.969,23.67861401]
[1680614964197,23.71,20.98,20.969,23.67861401]
[1680614966797,37.8018364,20.98,20.969,23.67861401]
[1680614970798,0.06756349,20.984,20.971,23.62]
[1680614971497,23.71,20.982,20.971,23.62]
[1680614983004,38.01017253,20.982,20.971,23.62]
[1680614992107,23.49,20.98,20.97,47.5489]
[1680614992707,23.49,20.98,20.969,23.68861401]
[1680614993807,10.0,20.979,20.969,23.68861401]
[1680614994710,23.49,20.98,20.969,23.68861401]
[1680614995311,10.0,20.979,20.969,23.68861401]
[1680614996409,23.49,20.98,20.969,23.68861401]
[1680614997113,23.71,20.978,20.969,0.06861401]
[1680615000912,23.71,20.981,20.97,23.61]
[1680615005216,61.81834614,20.983,20.97,23.61]
[1680615005410,47.6649,20.983,20.975,23.61]
[1680615005607,0.06756349,20.984,20.975,23.61]
[1680615005812,0.06756349,20.984,20.978,23.71]
[1680615006014,0.07123319,20.988,20.978,23.71]
[1680615007816,0.07123319,20.988,20.981,23.71]
[1680615008018,0.07123319,20.988,20.982,10.0]
[1680615008319,23.54054523,20.992,20.982,10.0]
[1680615008524,23.54054523,20.992,20.981,23.71]
[1680615009019,0.07054523,20.992,20.985,23.71]
[1680615009218,23.85386032,20.992,20.985,23.71]
[1680615010120,0.07054523,20.992,20.985,23.71]
[1680615013518,0.07054523,20.992,20.988,23.62]
[1680615013719,0.06742981,20.997,20.988,23.62]
[1680615013920,23.78639023,20.998,20.988,23.62]
[1680615014115,23.78639023,20.997,20.988,23.62]
[1680615014316,23.71,20.996,20.985,23.77783569]
[1680615022825,38.19905345,21.0,20.989,23.62]
[1680615025725,38.19905345,21.0,20.99,10.0]
[1680615025925,38.19905345,21.0,20.989,23.62]
[1680615031828,23.77766511,21.0,20.989,23.62]
[1680615032026,0.06766511,21.0,20.992,23.61]
[1680615032531,23.47,21.007,20.996,10.0]
[1680615033330,23.49,21.01,20.999,23.61]
[1680615033534,1.75052077,21.009,20.999,23.61]
[1680615036332,0.06019238,21.012,21.004,23.71]
[1680615042143,23.49,21.011,21.0,23.62]
[1680615044444,23.71,21.008,20.998,47.3307]
[1680615047240,23.71,21.002,20.997,0.06840614]
[1680615047435,23.71,21.002,20.992,0.06458074]
[1680615052044,23.47,21.003,20.992,23.77458074]
[1680615057551,23.77921336,21.007,20.996,23.62]
[1680615060154,23.71,21.003,20.992,23.68458074]
[1680615060657,10.0,21.002,20.992,23.68458074]
[1680615061757,23.71,21.003,20.992,23.68458074]
[1680615062058,23.71,21.003,20.992,0.06458074]
[1680615064458,23.71,21.005,20.994,23.61]
[1680615078268,10.0,21.004,20.994,23.61]
[1680615078964,23.71,21.005,20.994,23.61]
[1680615096979,0.06921336,21.007,20.997,23.61]
[1680615097182,1.81965609,21.007,20.997,23.61]
[1680615097484,23.72170538,21.006,20.997,23.61]
[1680615097985,23.72170538,21.005,20.997,23.61]
[1680615098176,0.06921336,21.007,20.997,23.61]
[1680615098381,25.54158751,21.007,20.997,23.61]
[1680615098582,23.7219303,21.006,20.997,23.61]
[1680615098783,23.7219303,21.005,20.997,23.61]
[1680615098983,0.06921336,21.007,20.997,23.61]
[1680615099189,25.54150242,21.007,20.997,23.61]
[1680615099487,23.72184451,21.006,20.997,23.61]
[1680615099688,23.72184451,21.005,20.997,23.61]
[1680615099886,10.06921336,21.007,20.997,23.61]
[1680615100087,23.72188046,21.006,20.997,23.61]
[1680615100387,23.72188046,21.005,20.997,23.61]
[1680615100588,10.06921336,21.007,20.997,23.61]
[1680615100888,23.72098189,21.006,20.997,23.61]
[1680615101089,23.72098189,21.005,20.997,23.61]
[1680615101288,10.06921336,21.007,20.997,23.61]
[1680615101489,23.72060976,21.006,20.997,23.61]
[1680615101787,0.06921336,21.007,20.997,23.61]
[1680615101788,23.72060976,21.005,20.997,23.61]
[1680615101984,23.72060976,21.006,20.997,23.61]
[1680615102185,47.43060976,21.006,20.995,23.62]
[1680615102385,23.72060976,21.005,20.995,23.62]
[1680615103384,0.06921336,21.007,20.998,23.62]
[1680615105385,23.49,21.005,20.994,23.71]
[1680615111997,23.47,21.003,20.993,45.4551]
[1680615115391,23.55921336,21.007,20.996,23.61]
[1680615121997,0.06921336,21.007,20.998,23.71]
[1680615122304,0.06921336,21.007,21.001,23.61]
[1680615122602,23.77161224,21.011,21.001,23.61]
[1680615123608,0.0609492,21.011,21.001,23.61]
[1680615124406,0.0609492,21.011,21.002,44.2305]
[1680615124705,23.76762549,21.011,21.002,44.2305]
[1680615124904,0.0609492,21.011,21.002,44.2305]
[1680615125605,23.77196631,21.011,21.002,44.2305]
[1680615130809,23.71,21.009,21.002,44.2305]
[1680615131613,23.71,21.009,20.998,23.61]
[1680615132103,23.71,21.007,20.997,23.67213009]
[1680615139016,10.0,21.006,20.997,23.67213009]
[1680615140315,23.71,20.999,20.997,0.06213009]
[1680615140512,23.71,20.999,20.991,44.45030277]
[1680615142117,23.49,21.001,20.991,44.45030277]
[1680615142815,10.0,21.0,20.991,44.45030277]
[1680615144318,23.49,21.001,20.991,44.45030277]
[1680615146017,10.0,21.0,20.991,44.45030277]
[1680615148318,23.49,21.001,20.991,44.45030277]
[1680615149523,23.71,20.998,20.991,44.45030277]
[1680615152018,23.71,20.999,20.991,44.45030277]
[1680615162433,23.71,20.996,20.991,44.45030277]
[1680615162634,23.71,20.996,20.986,0.06839386]
[1680615164233,10.0,20.995,20.986,0.06839386]
[1680615164734,10.0,20.995,20.988,23.62]
[1680615165835,0.07092254,20.998,20.988,23.62]
[1680615166633,0.07092254,20.998,20.989,44.7012]
[1680615185738,10.07092254,20.998,20.989,44.7012]
[1680615186339,23.47,20.997,20.989,44.7012]
[1680615187247,10.0,20.996,20.989,44.7012]
[1680615189249,0.07092254,20.998,20.989,68.4112]
[1680615192054,23.71,20.997,20.989,44.7012]
[1680615192354,10.0,20.996,20.989,44.7012]
[1680615192955,23.71,20.997,20.989,44.7012]
[1680615198451,0.07092254,20.998,20.99,23.61]
[1680615212070,0.07092254,20.998,20.989,44.7012]
[1680615215661,0.07092254,20.998,20.992,23.62]
[1680615215860,37.79323496,21.002,20.992,23.62]
[1680615216067,23.77423623,21.002,20.992,23.62]
[1680615216467,23.77423623,21.002,20.993,10.0]
[1680615217169,23.77423623,21.002,20.992,23.62]
[1680615217666,0.06423623,21.002,20.995,23.61]
[1680615221968,0.06423623,21.002,20.993,23.61]
[1680615229382,0.06423623,21.002,20.996,23.61]
[1680615229586,0.06294247,21.006,20.996,23.61]
[1680615229790,0.06014967,21.008,20.996,23.61]
[1680615229984,23.71,21.007,20.996,23.61]
[1680615230284,23.71,21.007,20.997,44.7863]
[1680615231987,23.71,21.005,20.997,44.7863]
[1680615237790,23.71,21.002,20.997,44.7863]
[1680615238085,23.71,21.002,20.994,0.07027949]
[1680615262009,23.71,21.001,20.994,0.07027949]
[1680615265910,10.0,21.0,20.994,0.07027949]
[1680615266106,10.0,21.0,20.99,23.67048873]
[1680615268310,10.0,20.997,20.99,0.06048873]
[1680615269008,23.49,20.998,20.99,0.06048873]
[1680615271010,10.0,20.997,20.99,0.06048873]
[1680615272212,23.49,20.997,20.99,0.06048873]
[1680615282219,24.24127009,21.002,20.99,0.06048873]
[1680615282220,23.49,20.998,20.99,0.06048873]
[1680615287114,10.0,21.001,20.99,0.06048873]
[1680615287318,18.83,20.996,20.99,0.06048873]
[1680615287620,10.0,20.995,20.989,19.02]
[1680615287923,18.83,20.996,20.989,19.02]
[1680615292029,18.83,20.995,20.989,18.94]
[1680615301736,24.24127009,21.002,20.991,19.02]
[1680615301737,19.02,20.998,20.991,19.02]
[1680615305338,18.83,20.995,20.988,18.94]
[1680615310340,18.83,20.998,20.992,18.94]
[1680615312246,23.76,21.001,20.99,23.55]
[1680615321161,23.76,21.001,20.991,10.0]
[1680615322161,0.06087508,21.002,20.992,23.76]
[1680615323261,0.06087508,21.002,20.996,23.76]
[1680615323461,0.06022666,21.006,20.999,23.55]
[1680615323657,0.06022666,21.006,21.001,23.55]
[1680615323858,0.06975056,21.011,21.001,23.55]
[1680615324253,23.76151187,21.011,21.001,23.55]
[1680615324455,0.06975056,21.011,21.001,23.55]
[1680615324660,23.76151187,21.011,21.001,23.55]
[1680615324860,23.69176131,21.01,21.001,23.55]
[1680615325162,0.06975056,21.011,21.001,23.55]
[1680615329067,23.76,21.009,20.998,23.76]
[1680615343773,23.76,21.006,20.996,0.06987957]
[1680615343981,45.3267,21.005,20.996,0.06987957]
[1680615351083,23.76,21.0,20.996,0.06987957]
[1680615351388,23.76,21.0,20.991,0.06922634]
[1680615362091,23.76,21.004,20.993,23.76]
[1680615371302,45.39412993,21.005,20.991,0.06922634]
[1680615371303,45.39412993,21.005,20.996,23.76]
[1680615372098,0.06742993,21.005,20.998,23.55]
[1680615382112,0.06742993,21.005,20.996,23.76]
[1680615392029,23.82742993,21.005,20.994,23.76]
[1680615393622,23.82742993,21.005,20.997,23.76]
[1680615393623,0.06742993,21.005,20.997,23.76]
[1680615409942,23.76,21.003,20.992,23.76]
[1680615412043,23.76,21.003,20.991,23.82922634]
[1680615422048,23.76,21.003,20.993,23.55]